bitfinex/quotes_SOLUSD_20250912
["timestamp","ask_amount","ask_price","bid_price","bid_amount"]
[1757642398486,0.03,232.11,232.09,33.72]
[1757642400977,1.16332137,232.11,232.08,33.7]
[1757642401275,0.7,232.1,232.08,33.7]
[1757642401479,0.7,232.1,232.05,0.71]
[1757642401770,3.11496515,232.08,232.05,33.68]
[1757642401968,0.43332137,232.07,232.05,33.68]
[1757642402381,0.03,232.11,232.06,0.71]
[1757642403479,0.03,232.11,232.06,2.00275518]
[1757642403687,0.03,232.11,232.06,5.23467795]
[1757642403869,0.03,232.11,232.09,26.0]
[1757642404193,0.03,232.11,232.1,33.7]
[1757642404497,0.03,232.11,232.1,34.41]
[1757642405376,0.03,232.11,232.1,35.70254631]
[1757642405884,0.03,232.11,232.1,34.41]
[1757642407409,0.03,232.11,232.1,35.70254631]
[1757642410972,0.03,232.16,232.13,26.0]
[1757642411299,0.03,232.16,232.13,59.66]
[1757642411497,0.03,232.16,232.13,60.37]
[1757642411795,0.03,232.16,232.13,73.96559401]
[1757642412179,0.03,232.16,232.13,28.43194838]
[1757642412378,0.03,232.16,232.13,62.09194838]
[1757642412803,0.03,232.16,232.13,75.68754239]
[1757642412978,0.03,232.16,232.13,76.97992166]
[1757642413184,0.03,232.16,232.13,77.41071475]
[1757642415094,0.03,232.16,232.13,80.86161285]
[1757642416315,0.03,232.22,232.2,131.95]
[1757642416616,0.03,232.22,232.21,33.62]
[1757642416775,0.03,232.22,232.21,34.33]
[1757642416978,0.03,232.22,232.21,1.29193402]
[1757642417204,0.03,232.22,232.21,33.62]
[1757642417618,0.03,232.22,232.21,35.34157783]
[1757642417801,0.03,232.22,232.21,34.33]
[1757642419410,0.03,232.22,232.21,33.62]
[1757642420012,0.03,232.22,232.21,35.62193402]
[1757642421805,0.03,232.22,232.21,37.34351184]
[1757642422196,0.2,232.24,232.22,131.92]
[1757642422391,0.2,232.24,232.23,33.58]
[1757642422591,0.2,232.24,232.23,34.29]
[1757642423512,0.9,232.24,232.22,4.316]
[1757642423693,0.2,232.24,232.23,33.58]
[1757642423891,0.2,232.24,232.23,12.64]
[1757642425113,0.2,232.24,232.23,13.34]
[1757642425615,0.2,232.24,232.23,18.94782276]
[1757642425817,0.2,232.24,232.23,14.63182276]
[1757642426418,0.2,232.24,232.23,1.99182276]
[1757642426797,0.2,232.24,232.23,35.71182276]
[1757642428015,0.2,232.24,232.23,49.30741677]
[1757642428989,0.1,232.35,232.26,26.0]
[1757642429193,0.1,232.35,232.3,26.0]
[1757642429392,0.1,232.35,232.31,33.7]
[1757642429595,0.1,232.35,232.32,1.29132231]
[1757642429813,0.1,232.35,232.32,1.99132231]
[1757642430010,0.1,232.35,232.33,0.7]
[1757642430212,0.1,232.35,232.34,33.72]
[1757642431094,0.1,232.35,232.34,34.42]
[1757642431515,0.1,232.35,232.34,35.71121115]
[1757642432406,0.1,232.35,232.34,35.69121115]
[1757642433009,18.0280046,232.48,232.34,35.69121115]
[1757642433010,0.1,232.48,232.38,26.0]
[1757642433216,0.1,232.48,232.42,26.0]
[1757642433412,0.1,232.48,232.43,33.72]
[1757642433604,0.1,232.48,232.4,0.7]
[1757642433917,0.65,232.47,232.41,33.72]
[1757642434421,0.65,232.47,232.4,0.7]
[1757642434918,0.65,232.47,232.41,33.7]
[1757642435116,0.65,232.47,232.4,1.99086304]
[1757642435416,0.65,232.46,232.38,26.0]
[1757642435821,0.65,232.45,232.38,26.0]
[1757642436314,0.75,232.48,232.39,0.7]
[1757642436523,0.75,232.48,232.39,34.4]
[1757642436704,0.75,232.48,232.4,0.7]
[1757642437624,0.75,232.48,232.38,26.7]
[1757642437815,0.65,232.47,232.39,33.68]
[1757642438027,0.65,232.46,232.35,0.7]
[1757642438427,0.65,232.46,232.36,33.68]
[1757642438639,0.65,232.45,232.36,26.0]
[1757642438803,0.65,232.44,232.32,0.7]
[1757642439139,1.08332137,232.44,232.33,14.48]
[1757642439306,0.65,232.43,232.34,15.18]
[1757642439836,0.65,232.43,232.34,16.47119864]
[1757642440135,26.43332137,232.45,232.34,16.47119864]
[1757642440136,0.65,232.42,232.34,15.18]
[1757642440341,0.65,232.42,232.34,0.7]
[1757642440503,0.65,232.42,232.35,33.68]
[1757642440899,1.99169365,232.38,232.28,0.7]
[1757642441119,0.65,232.37,232.28,0.7]
[1757642441323,0.65,232.37,232.29,33.72]
[1757642441538,0.65,232.36,232.29,33.72]
[1757642441713,0.65,232.35,232.29,33.72]
[1757642442237,0.65,232.34,232.22,0.7]
[1757642442449,0.65,232.34,232.23,22.54]
[1757642442746,1.99169365,232.29,232.23,22.54]
[1757642442921,0.65,232.28,232.23,22.54]
[1757642443112,1.99169365,232.29,232.2,1.29198966]
[1757642443318,1.99169365,232.27,232.21,33.72]
[1757642443516,0.65,232.26,232.21,33.72]
[1757642444321,1.99169365,232.27,232.21,35.01192597]
[1757642444511,1.99169365,232.27,232.21,35.71192597]
[1757642445237,4.73776626,232.32,232.21,35.71192597]
[1757642445433,0.65,232.28,232.21,35.71192597]
[1757642445621,2.64169365,232.28,232.21,35.71192597]
[1757642446140,1.99169365,232.3,232.22,0.7]
[1757642446317,0.65,232.31,232.22,0.7]
[1757642446630,1.99169365,232.3,232.22,0.7]
[1757642446938,0.65,232.29,232.22,0.7]
[1757642448235,0.65,232.29,232.21,33.84]
[1757642448412,0.65,232.29,232.22,33.68]
[1757642449222,1.99169365,232.28,232.22,33.68]
[1757642449718,0.65,232.27,232.22,33.68]
[1757642450147,0.65,232.26,232.21,0.12]
[1757642450458,1.99169365,232.22,232.21,0.12]
[1757642450755,2.64169365,232.22,232.21,33.8]
[1757642451537,2.64169365,232.22,232.21,0.12]
[1757642451729,3.07501502,232.22,232.21,0.12]
[1757642452240,20.97687033,232.22,232.21,0.12]
[1757642452629,24.13256162,232.22,232.21,0.12]
[1757642452835,20.97687033,232.22,232.21,0.12]
[1757642454333,24.02840263,232.22,232.21,0.12]
[1757642455837,18.98517668,232.22,232.21,0.12]
[1757642456039,24.02840263,232.22,232.21,0.12]
[1757642459333,18.98517668,232.22,232.21,0.12]
[1757642459524,24.02840263,232.22,232.21,0.12]
[1757642460447,29.07162858,232.22,232.21,0.12]
[1757642461444,43.9024117,232.19,232.18,0.12]
[1757642461651,13.59559401,232.14,232.13,0.12]
[1757642461830,19.07214133,232.14,232.13,0.12]
[1757642462026,19.75214133,232.14,232.13,0.12]
[1757642462249,39.59559401,232.11,232.1,0.12]
[1757642462443,45.07214133,232.11,232.1,0.12]
[1757642462624,49.20176402,232.11,232.1,0.12]
[1757642463441,22.94749331,232.09,232.08,0.12]
[1757642463646,23.38081468,232.09,232.08,0.12]
[1757642463844,24.06081468,232.09,232.08,0.12]
[1757642464347,45.07214133,232.09,232.08,0.12]
[1757642464554,40.02891538,232.09,232.08,0.12]
[1757642464852,45.07214133,232.09,232.08,0.12]
[1757642465062,45.07214133,232.09,232.08,0.82]
[1757642465445,0.43332137,232.09,232.08,0.82]
[1757642466264,26.0,232.12,232.08,0.82]
[1757642466637,13.59559401,232.13,232.08,0.82]
[1757642466843,0.43332137,232.12,232.08,0.82]
[1757642467057,0.43332137,232.12,232.09,0.7]
[1757642467360,0.43332137,232.12,232.08,0.12]
[1757642467541,14.02891538,232.16,232.1,0.7]
[1757642467738,0.43332137,232.16,232.1,0.7]
[1757642467955,0.43332137,232.15,232.1,0.7]
[1757642468158,5.47654732,232.15,232.08,0.12]
[1757642468461,0.43332137,232.15,232.09,0.7]
[1757642469260,14.02891538,232.16,232.09,0.7]
[1757642469947,0.43332137,232.16,232.09,1.99259614]
[1757642470250,5.04322595,232.19,232.1,0.7]
[1757642470446,0.43332137,232.18,232.1,0.7]
[1757642472462,0.43332137,232.18,232.1,1.99253601]
[1757642472665,0.43332137,232.18,232.11,0.7]
[1757642473638,0.43332137,232.18,232.12,1.29243494]
[1757642473863,0.46332137,232.22,232.13,0.7]
[1757642474053,0.03,232.22,232.13,0.7]
[1757642474856,0.03,232.22,232.14,33.72]
[1757642475143,0.03,232.22,232.15,0.7]
[1757642475951,7.59817521,232.22,232.16,33.7]
[1757642476151,0.03,232.22,232.17,0.7]
[1757642476456,0.46332137,232.22,232.17,0.7]
[1757642476656,0.46332137,232.22,232.17,34.4]
[1757642477263,0.46332137,232.22,232.12,1.29238739]
[1757642477463,0.46332137,232.22,232.18,33.7]
[1757642478347,0.03,232.22,232.19,0.7]
[1757642478560,0.03,232.22,232.2,0.7]
[1757642478966,0.03,232.22,232.21,0.7]
[1757642479972,0.03,232.22,232.21,132.52]
[1757642480359,0.03,232.22,232.21,133.81193402]
[1757642480562,0.03,232.22,232.21,132.52]
[1757642480864,0.03,232.22,232.21,133.81193402]
[1757642484161,0.03,232.22,232.21,147.40752803]
[1757642485559,0.03,232.27,232.25,39.59559401]
[1757642485759,0.03,232.27,232.26,33.68]
[1757642485962,0.03,232.27,232.26,34.38]
[1757642486174,0.03,232.27,232.26,47.97559401]
[1757642486554,0.03,232.35,232.3,131.79]
[1757642486783,0.03,232.35,232.31,33.68]
[1757642487156,0.03,232.35,232.32,0.7]
[1757642487585,0.03,232.35,232.34,26.0]
[1757642487957,0.03,232.35,232.34,26.7]
[1757642489767,0.03,232.35,232.34,33.66]
[1757642489979,0.03,232.35,232.3,26.0]
[1757642490192,0.03,232.35,232.31,33.66]
[1757642490683,0.03,232.35,232.31,34.36]
[1757642490859,0.03,232.35,232.32,0.7]
[1757642491282,0.03,232.35,232.33,0.7]
[1757642491465,0.03,232.35,232.34,26.0]
[1757642491674,0.03,232.35,232.34,26.7]
[1757642493675,0.03,232.35,232.31,35.65133977]
[1757642493884,0.03,232.35,232.33,0.7]
[1757642494391,0.03,232.35,232.34,33.62]
[1757642498399,0.27,232.39,232.34,33.62]
[1757642498766,0.43332137,232.42,232.34,33.62]
[1757642498967,3.5408052,232.44,232.35,0.7]
[1757642499976,13.46579253,232.45,232.35,0.7]
[1757642500302,17.89745229,232.46,232.35,0.7]
[1757642500303,0.90332137,232.46,232.36,1.29110001]
[1757642500607,0.90332137,232.46,232.37,0.7]
[1757642500894,0.90332137,232.46,232.38,33.58]
[1757642501271,0.47,232.46,232.38,33.58]
[1757642501482,26.90332137,232.47,232.38,34.28]
[1757642501777,30.0108052,232.47,232.38,34.28]
[1757642502197,4.0108052,232.47,232.39,0.7]
[1757642502381,0.90332137,232.47,232.39,0.7]
[1757642502581,0.90332137,232.47,232.39,1.99092865]
[1757642502788,0.47,232.47,232.4,0.7]
[1757642503889,0.03,232.45,232.4,0.7]
[1757642504096,0.5,232.45,232.38,165.37]
[1757642504289,0.03,232.45,232.38,165.37]
[1757642504491,0.5,232.45,232.39,33.64]
[1757642504709,0.03,232.45,232.39,33.64]
[1757642504905,0.03,232.45,232.4,33.64]
[1757642505406,0.03,232.45,232.4,34.34]
[1757642505714,0.03,232.45,232.41,33.64]
[1757642505898,0.03,232.45,232.4,0.7]
[1757642506103,0.03,232.45,232.42,33.64]
[1757642506610,0.03,232.45,232.43,0.7]
[1757642506998,0.03,232.45,232.43,132.49]
[1757642507516,0.03,232.45,232.44,0.7]
[1757642508216,0.03,232.45,232.44,34.32]
[1757642508530,0.03,232.45,232.44,35.61065565]
[1757642509020,0.03,232.45,232.44,49.20624966]
[1757642514521,0.03,232.45,232.44,15.58624966]
[1757642514705,0.03,232.45,232.44,49.16624966]
[1757642516218,0.03,232.45,232.44,49.20624966]
[1757642519092,0.03,232.45,232.44,1.99065565]
[1757642519292,0.03,232.45,232.44,27.29065565]
[1757642519499,0.03,232.45,232.44,60.91065565]
[1757642519812,0.03,232.45,232.44,61.60065565]
[1757642520007,0.03,232.45,232.44,75.19624966]
[1757642520942,0.03,232.48,232.47,39.59559401]
[1757642521108,0.03,232.48,232.47,73.19559401]
[1757642521301,0.03,232.48,232.47,73.88559401]
[1757642521699,0.03,232.48,232.47,75.1760831]
[1757642522501,0.03,232.48,232.44,1.71921003]
[1757642522712,0.03,232.48,232.45,33.64]
[1757642522912,0.03,232.48,232.47,26.0]
[1757642523114,0.03,232.48,232.47,59.64]
[1757642523311,0.03,232.48,232.47,73.92559401]
[1757642523500,0.03,232.48,232.47,26.0]
[1757642523706,0.03,232.48,232.47,33.66]
[1757642524302,0.03,232.48,232.47,34.35]
[1757642525700,0.03,232.48,232.47,35.64048909]
[1757642525906,0.03,232.48,232.47,35.62048909]
[1757642526902,0.03,232.48,232.46,1.2905424]
[1757642527230,0.03,232.48,232.47,33.62]
[1757642528031,0.53,232.48,232.46,26.0]
[1757642528326,0.03,232.48,232.47,33.66]
[1757642528531,0.03,232.48,232.47,47.94559401]
[1757642528710,0.53,232.64,232.55,26.0]
[1757642528908,0.96332137,232.63,232.55,26.0]
[1757642529224,3.10748383,232.61,232.47,1.7189145]
[1757642529426,3.10748383,232.59,232.48,33.74]
[1757642529610,0.96332137,232.58,232.48,33.74]
[1757642529811,0.53,232.57,232.48,33.74]
[1757642530012,0.53,232.56,232.48,35.03040791]
[1757642530211,0.53,232.55,232.48,35.03040791]
[1757642530545,0.53,232.54,232.48,35.03040791]
[1757642531026,0.53,232.53,232.48,33.74]
[1757642531234,0.53,232.52,232.48,35.03043107]
[1757642531437,0.53,232.55,232.48,35.03043107]
[1757642532443,0.53,232.55,232.49,0.69]
[1757642532617,0.53,232.55,232.48,35.03043107]
[1757642533447,0.53,232.55,232.48,38.94651503]
[1757642534020,0.43332137,232.6,232.51,26.0]
[1757642534347,0.53,232.63,232.55,26.0]
[1757642534525,0.53,232.63,232.56,34.43]
[1757642536040,0.53,232.63,232.57,1.28993421]
[1757642536645,0.53,232.65,232.56,35.71998955]
[1757642536830,0.53,232.64,232.56,35.02998393]
[1757642537034,0.53,232.64,232.56,35.71998393]
[1757642537364,0.53,232.64,232.57,0.69]
[1757642538143,0.43332137,232.68,232.57,1.97992624]
[1757642538347,0.66,232.66,232.57,1.97992624]
[1757642539576,0.66,232.66,232.58,0.69]
[1757642540140,0.66,232.66,232.59,1.28982329]
[1757642540342,0.66,232.66,232.6,33.72]
[1757642541045,0.66,232.68,232.61,0.69]
[1757642541770,0.66,232.68,232.6,33.72]
[1757642542266,0.66,232.68,232.6,35.00976452]
[1757642542765,0.06,232.66,232.6,33.72]
[1757642543066,0.06,232.66,232.61,0.69]
[1757642543243,0.06,232.66,232.62,0.69]
[1757642543447,0.06,232.66,232.63,0.69]
[1757642543649,0.06,232.66,232.64,33.7]
[1757642543860,0.06,232.66,232.65,0.69]
[1757642544167,0.06,232.66,232.64,33.7]
[1757642544349,0.06,232.66,232.65,0.69]
[1757642544967,0.06,232.66,232.64,33.7]
[1757642545144,0.06,232.66,232.61,0.68]
[1757642545345,0.78,232.66,232.62,33.68]
[1757642545851,0.06,232.66,232.63,33.68]
[1757642546155,0.78,232.66,232.64,33.68]
[1757642546855,0.06,232.66,232.64,33.68]
[1757642547179,0.78,232.66,232.64,33.68]
[1757642547966,0.06,232.66,232.64,33.68]
[1757642548359,0.78,232.66,232.64,33.68]
[1757642549270,0.06,232.66,232.64,33.68]
[1757642550211,0.06,232.66,232.6,0.68]
[1757642550474,0.72,232.65,232.61,33.68]
[1757642550776,0.72,232.64,232.62,33.68]
[1757642551147,0.06,232.66,232.62,34.36]
[1757642552055,0.06,232.66,232.62,33.68]
[1757642552471,0.06,232.66,232.63,0.68]
[1757642552777,0.06,232.66,232.62,33.68]
[1757642553281,0.06,232.66,232.63,34.42]
[1757642555279,0.06,232.66,232.63,33.74]
[1757642555664,13.59559401,232.59,232.56,12.89075089]
[1757642555860,26.0,232.54,232.44,0.03]
[1757642556168,20.0,232.44,232.27,0.12]
[1757642556504,1.98415606,232.37,232.28,26.0]
[1757642556714,4.33347555,232.38,232.28,26.0]
[1757642556874,3.180276,232.37,232.28,26.0]
[1757642557196,1.15332137,232.38,232.27,1.41157327]
[1757642557589,2.70415606,232.37,232.28,30.8]
[1757642557782,0.72,232.36,232.28,30.8]
[1757642558501,0.72,232.41,232.31,26.0]
[1757642558702,39.59559401,232.47,232.33,13.59559401]
[1757642558703,1.15332137,232.46,232.33,13.59559401]
[1757642558906,1.15332137,232.46,232.37,26.0]
[1757642559104,0.72,232.46,232.38,0.68]
[1757642559282,3.17375117,232.48,232.38,26.68]
[1757642559477,0.43332137,232.49,232.38,26.68]
[1757642559679,3.6068575,232.49,232.39,0.68]
[1757642559989,0.72,232.5,232.4,35.76]
[1757642560190,0.43332137,232.49,232.4,35.76]
[1757642560988,1.15332137,232.5,232.41,1.97082225]
[1757642561186,0.43332137,232.5,232.41,1.97082225]
[1757642561801,1.15332137,232.52,232.41,5.19787788]
[1757642562312,1.15332137,232.52,232.42,0.68]
[1757642562502,0.43332137,232.54,232.44,26.0]
[1757642562810,0.43332137,232.54,232.45,0.68]
[1757642563005,0.43332137,232.54,232.46,37.0305446]
[1757642563308,1.15332137,232.55,232.47,0.68]
[1757642563512,0.72,232.55,232.47,0.68]
[1757642563810,1.15332137,232.57,232.47,0.68]
[1757642564582,5.03399298,232.5,232.43,12.89851022]
[1757642564788,0.72,232.49,232.44,35.72]
[1757642565112,5.03399298,232.5,232.44,35.72]
[1757642565408,0.72,232.51,232.44,35.72]
[1757642565617,5.46731435,232.5,232.44,35.72]
[1757642565790,0.43332137,232.5,232.44,35.72]
[1757642566508,0.43332137,232.5,232.45,1.29060012]
[1757642566702,1.15332137,232.5,232.43,1.29066789]
[1757642567012,5.03399298,232.47,232.44,35.68]
[1757642567310,5.46731435,232.5,232.44,35.68]
[1757642567686,0.43332137,232.5,232.44,35.68]
[1757642567884,1.15332137,232.5,232.44,35.68]
[1757642568092,6.18731435,232.5,232.43,1.29066789]
[1757642568298,6.18731435,232.5,232.45,35.66]
[1757642568497,0.72,232.49,232.46,1.2905446]
[1757642568894,0.43332137,232.48,232.46,1.2905446]
[1757642569215,0.43332137,232.49,232.46,1.2905446]
[1757642569421,1.15332137,232.49,232.46,1.2905446]
[1757642569713,1.15332137,232.49,232.42,3.22685518]
[1757642569714,5.75399298,232.48,232.47,35.64]
[1757642571117,5.75399298,232.48,232.47,35.62]
[1757642572732,5.75399298,232.48,232.47,35.58]
[1757642572891,5.75399298,232.48,232.47,35.56]
[1757642573395,5.75399298,232.48,232.4,4.51795212]
[1757642573614,5.75399298,232.48,232.41,35.56]
[1757642574127,5.03399298,232.47,232.41,35.56]
[1757642574293,1.15332137,232.53,232.42,0.68]
[1757642574497,31.03399298,232.52,232.42,0.68]
[1757642574698,0.43332137,232.51,232.42,0.68]
[1757642575019,0.43332137,232.51,232.44,1.29065565]
[1757642576225,5.46731435,232.51,232.44,1.29065565]
[1757642576523,0.43332137,232.51,232.45,35.48]
[1757642576731,5.03399298,232.5,232.45,35.48]
[1757642576901,5.75399298,232.49,232.45,35.48]
[1757642577104,0.72,232.49,232.45,36.77059149]
[1757642577623,5.03399298,232.5,232.45,36.77059149]
[1757642577929,5.03399298,232.49,232.45,36.77059149]
[1757642578112,5.03399298,232.49,232.43,1.29071118]
[1757642578313,5.03399298,232.49,232.44,35.46]
[1757642578621,5.03399298,232.49,232.44,36.18]
[1757642578824,5.75399298,232.5,232.45,0.72]
[1757642579024,5.75399298,232.5,232.44,35.46]
[1757642579400,5.46731435,232.49,232.44,35.46]
[1757642579608,5.46731435,232.49,232.45,0.72]
[1757642580325,0.43332137,232.54,232.46,0.72]
[1757642580526,0.43332137,232.64,232.51,26.0]
[1757642580729,0.43332137,232.64,232.55,26.0]
[1757642580928,0.49332137,232.66,232.55,26.0]
[1757642581223,5.03399298,232.65,232.56,0.72]
[1757642581402,5.46731435,232.64,232.56,0.72]
[1757642581602,5.03399298,232.61,232.57,35.48]
[1757642581804,5.46731435,232.62,232.58,35.48]
[1757642582012,6.18731435,232.62,232.58,35.48]
[1757642582500,1.15332137,232.62,232.58,35.48]
[1757642582705,0.43332137,232.62,232.58,35.48]
[1757642583315,0.43332137,232.64,232.59,2.00982329]
[1757642584225,1.15332137,232.64,232.59,1.28982329]
[1757642584629,0.43332137,232.64,232.58,35.48]
[1757642584821,1.15332137,232.64,232.58,35.48]
[1757642585231,0.43332137,232.64,232.58,36.76986223]
[1757642585435,0.43332137,232.65,232.58,36.76986223]
[1757642585639,0.43332137,232.65,232.58,39.9945591]
[1757642585836,0.43332137,232.65,232.58,1.28986223]
[1757642586035,5.75399298,232.64,232.59,35.4]
[1757642586335,1.15332137,232.63,232.59,35.4]
[1757642587337,0.43332137,232.63,232.6,2.00976784]
[1757642587538,0.49332137,232.66,232.61,0.72]
[1757642587714,0.49332137,232.66,232.62,0.72]
[1757642588036,0.06,232.66,232.62,0.72]
[1757642588236,0.06,232.66,232.6,4.51418744]
[1757642588419,0.06,232.66,232.63,0.72]
[1757642588624,0.06,232.66,232.64,35.34]
[1757642589519,0.06,232.66,232.64,36.62953962]
[1757642589726,0.06,232.66,232.64,35.34]
[1757642589923,0.72,232.65,232.58,0.72]
[1757642590238,0.49332137,232.66,232.59,35.32]
[1757642591325,0.49332137,232.66,232.58,0.72]
[1757642591526,0.49332137,232.66,232.6,1.28976784]
[1757642591728,0.49332137,232.66,232.61,0.72]
[1757642591932,0.49332137,232.66,232.62,0.72]
[1757642592137,0.49332137,232.66,232.6,1.28976784]
[1757642592334,0.49332137,232.66,232.6,2.00976784]
[1757642592645,0.49332137,232.66,232.61,35.28]
[1757642592841,0.49332137,232.66,232.62,1.28965695]
[1757642593044,0.06,232.66,232.62,1.28965695]
[1757642593346,0.49332137,232.66,232.63,0.72]
[1757642593554,0.06,232.66,232.63,0.72]
[1757642593734,0.49332137,232.66,232.63,0.72]
[1757642593934,0.06,232.66,232.62,1.28965695]
[1757642594129,0.49332137,232.66,232.62,1.28965695]
[1757642594334,0.06,232.66,232.62,2.00965695]
[1757642594534,0.49332137,232.66,232.62,2.00965695]
[1757642594738,0.06,232.66,232.62,2.00965695]
[1757642594936,0.49332137,232.66,232.63,36.54955747]
[1757642595138,0.06,232.66,232.63,37.26955747]
[1757642595334,0.06,232.66,232.64,0.72]
[1757642595751,0.06,232.66,232.65,0.72]
[1757642596752,0.06,232.66,232.65,2.00949065]
[1757642597767,0.06,232.66,232.65,28.00949065]
[1757642598128,1e-08,232.66,232.65,28.00949065]
[1757642599377,1e-08,232.66,232.65,63.16949065]
[1757642601045,1e-08,232.66,232.65,63.16949065]
[1757642601967,1e-08,232.66,232.65,63.12949065]
[1757642602744,1e-08,232.66,232.65,63.08949065]
[1757642607577,1e-08,232.66,232.65,62.36949065]
[1757642607778,1e-08,232.66,232.65,63.08949065]
[1757642608278,1e-08,232.66,232.65,28.00949065]
[1757642608576,1e-08,232.66,232.65,62.24949065]
[1757642608781,1e-08,232.66,232.65,27.28949065]
[1757642608993,1e-08,232.66,232.65,62.24949065]
[1757642609162,1e-08,232.66,232.65,62.96949065]
[1757642610466,1e-08,232.66,232.65,28.00949065]
[1757642610677,1e-08,232.66,232.65,62.92949065]
[1757642611760,1e-08,232.66,232.65,28.00949065]
[1757642611989,1e-08,232.66,232.65,62.88949065]
[1757642612563,1e-08,232.66,232.65,28.00949065]
[1757642612759,1e-08,232.66,232.65,62.88949065]
[1757642614689,1e-08,232.66,232.65,62.16949065]
[1757642618392,1e-08,232.66,232.65,62.88949065]
[1757642621175,1e-08,232.66,232.65,62.74949065]
[1757642622492,1e-08,232.66,232.65,76.34508466]
[1757642622879,1e-08,232.69,232.66,13.59559401]
[1757642623075,1e-08,232.69,232.68,13.59559401]
[1757642623602,6.39426817,232.85,232.7,26.0]
[1757642623603,1e-08,232.71,232.7,26.0]
[1757642623794,1e-08,232.71,232.7,75.01559401]
[1757642624191,1e-08,232.71,232.7,79.75316326]
[1757642624789,1e-08,232.71,232.7,79.73316326]
[1757642626890,1e-08,232.71,232.7,79.71316326]
[1757642627099,1e-08,232.71,232.7,45.05316326]
[1757642627297,1e-08,232.71,232.7,79.69316326]
[1757642627792,1e-08,232.71,232.7,66.09756925]
[1757642627987,1e-08,232.71,232.7,79.69316326]
[1757642629394,1e-08,232.71,232.7,45.05316326]
[1757642629607,1e-08,232.71,232.7,79.67316326]
[1757642630201,1e-08,232.71,232.7,79.65316326]
[1757642632402,1e-08,232.71,232.7,45.05316326]
[1757642632602,1e-08,232.71,232.7,79.61316326]
[1757642635709,1e-08,232.71,232.7,79.55316326]
[1757642636104,1e-08,232.71,232.7,45.05316326]
[1757642636313,1e-08,232.71,232.7,79.55316326]
[1757642637815,1e-08,232.71,232.7,79.53316326]
[1757642641707,1e-08,232.71,232.7,110.41316326]
[1757642641904,1e-08,232.71,232.7,110.33316326]
[1757642642415,1e-08,232.71,232.7,71.76480758]
[1757642642620,0.69000001,232.71,232.7,66.56921357]
[1757642643124,0.69000001,232.71,232.7,32.16921357]
[1757642643301,0.69000001,232.71,232.7,66.56921357]
[1757642643496,0.69000001,232.71,232.7,30.88]
[1757642643697,0.69000001,232.71,232.7,65.28]
[1757642643908,0.69000001,232.71,232.7,66.56921357]
[1757642645601,0.69000001,232.71,232.7,65.28]
[1757642645805,0.69000001,232.71,232.7,30.88]
[1757642646311,0.69000001,232.71,232.7,65.26]
[1757642646514,0.69000001,232.71,232.7,34.38]
[1757642646918,0.69000001,232.71,232.7,35.66921357]
[1757642647303,1e-08,232.71,232.7,35.66921357]
[1757642649224,1e-08,232.71,232.7,1.28921357]
[1757642649408,1e-08,232.71,232.7,35.64921357]
[1757642650521,1e-08,232.71,232.7,36.30921357]
[1757642650719,1e-08,232.71,232.7,36.26921357]
[1757642650910,1e-08,232.71,232.7,1.94921357]